bitfinex/quotes_BTCUSD_20220101
["timestamp","ask_amount","ask_price","bid_price","bid_amount"]
[1641004180537,0.8665882,46865.0,46864.0,8.453e-05]
[1641004180739,0.84785517,46865.0,46864.0,8.453e-05]
[1641004181140,0.94785516,46865.0,46864.0,8.453e-05]
[1641004181540,0.96668633,46865.0,46864.0,8.453e-05]
[1641004181739,0.94545576,46865.0,46864.0,8.453e-05]
[1641004182559,0.96733865,46865.0,46864.0,8.453e-05]
[1641004182759,0.94850748,46865.0,46864.0,8.453e-05]
[1641004182962,1.96850748,46865.0,46864.0,8.453e-05]
[1641004183559,1.99011474,46865.0,46864.0,8.453e-05]
[1641004183859,1.96823185,46865.0,46864.0,8.453e-05]
[1641004184459,1.96823185,46865.0,46848.0,0.72859308]
[1641004184460,1.2,46864.0,46848.0,0.72859308]
[1641004184661,0.31480633,46848.0,46846.0,0.01]
[1641004184866,0.31480633,46848.0,46841.0,0.002]
[1641004185061,0.05,46847.0,46841.0,0.002]
[1641004185462,0.61791367,46845.0,46841.0,0.002]
[1641004185717,0.47195534,46845.0,46841.0,0.002]
[1641004185916,0.57195534,46845.0,46841.0,0.002]
[1641004186617,0.59240228,46845.0,46841.0,0.002]
[1641004186818,0.86685132,46845.0,46841.0,0.002]
[1641004187018,0.92023332,46845.0,46841.0,0.002]
[1641004187716,0.91895437,46845.0,46841.0,0.002]
[1641004187920,1.25801526,46845.0,46841.0,0.002]
[1641004188717,1.2761491,46845.0,46841.0,0.002]
[1641004188920,1.25698111,46845.0,46841.0,0.002]
[1641004189659,1.27839314,46845.0,46841.0,0.002]
[1641004189859,1.2602593,46845.0,46841.0,0.002]
[1641004190562,1.27982583,46845.0,46841.0,0.002]
[1641004190860,1.2584138,46845.0,46841.0,0.002]
[1641004191461,1.2584138,46845.0,46844.0,0.09141003]
[1641004191661,1.27814112,46845.0,46844.0,0.09141003]
[1641004191965,1.25857459,46845.0,46844.0,0.09141003]
[1641004192762,1.27825375,46845.0,46844.0,0.09141003]
[1641004192962,1.25852643,46845.0,46844.0,0.09141003]
[1641004193428,1.30044392,46845.0,46844.0,0.09141003]
[1641004193630,1.31858157,46845.0,46844.0,0.09141003]
[1641004193826,1.30013874,46845.0,46844.0,0.09141003]
[1641004194629,1.31856267,46845.0,46844.0,0.09141003]
[1641004194829,1.30042502,46845.0,46844.0,0.09141003]
[1641004195629,1.31946701,46845.0,46844.0,0.09141003]
[1641004195828,1.30104308,46845.0,46844.0,0.09141003]
[1641004196029,1.25912559,46845.0,46844.0,0.09141003]
[1641004196232,1.25977703,46845.0,46844.0,0.09141003]
[1641004196431,1.26010275,46845.0,46844.0,0.09141003]
[1641004196632,1.28137021,46845.0,46844.0,0.09141003]
[1641004196862,1.26232822,46845.0,46844.0,0.09141003]
[1641004197666,1.28194965,46845.0,46844.0,0.09141003]
[1641004197872,1.26068219,46845.0,46844.0,0.09141003]
[1641004198668,1.28267665,46845.0,46844.0,0.09141003]
[1641004198868,1.26305522,46845.0,46844.0,0.09141003]
[1641004199267,1.26305522,46845.0,46844.0,0.08641003]
[1641004199669,1.28447788,46845.0,46844.0,0.08641003]
[1641004199869,1.26248342,46845.0,46844.0,0.08641003]
[1641004200826,1.28061494,46845.0,46844.0,0.08641003]
[1641004201026,1.25919228,46845.0,46844.0,0.08641003]
[1641004201826,1.27980894,46845.0,46844.0,0.08641003]
[1641004202027,1.24106076,46845.0,46844.0,0.08641003]
[1641004202232,1.23231687,46845.0,46844.0,0.08641003]
[1641004202429,0.96661172,46845.0,46844.0,0.08641003]
[1641004202628,0.31963716,46845.0,46844.0,0.08641003]
[1641004202829,0.33868297,46845.0,46844.0,0.08641003]
[1641004203033,0.60642107,46845.0,46844.0,0.08641003]
[1641004203832,0.62768391,46845.0,46844.0,0.08641003]
[1641004204030,0.6086381,46845.0,46844.0,0.08641003]
[1641004204230,1.03869507,46845.0,46844.0,0.08641003]
[1641004204663,1.05823752,46845.0,46844.0,0.08641003]
[1641004205766,1.07647086,46845.0,46844.0,0.08641003]
[1641004206669,1.27647086,46845.0,46844.0,0.08641003]
[1641004206870,1.29724628,46845.0,46844.0,0.08641003]
[1641004207066,1.23820765,46845.0,46844.0,0.08641003]
[1641004207968,1.23843087,46845.0,46844.0,0.08641003]
[1641004208526,1.03843087,46845.0,46844.0,0.08641003]
[1641004208724,1.06007574,46845.0,46844.0,0.08641003]
[1641004208925,1.04065669,46845.0,46844.0,0.08641003]
[1641004209327,0.771339,46845.0,46844.0,0.08641003]
[1641004209525,0.771339,46845.0,46844.0,0.10735809]
[1641004209725,0.7930518,46845.0,46844.0,0.10735809]
[1641004210829,1.05838978,46845.0,46844.0,0.10735809]
[1641004211423,1.08036094,46845.0,46844.0,0.10735809]
[1641004211626,1.03700327,46845.0,46844.0,0.10735809]
[1641004211863,1.05654814,46845.0,46844.0,0.10735809]
[1641004212064,1.03457698,46845.0,46844.0,0.10735809]
[1641004212670,0.769239,46845.0,46844.0,0.10735809]
[1641004212864,1.06528512,46845.0,46844.0,0.10735809]
[1641004213066,1.04574025,46845.0,46844.0,0.10735809]
[1641004213865,1.06452483,46845.0,46844.0,0.10735809]
[1641004214065,1.04322671,46845.0,46844.0,0.10735809]
[1641004214865,1.06264804,46845.0,46844.0,0.10735809]
[1641004215068,1.04386346,46845.0,46844.0,0.10735809]
[1641004215939,1.04595168,46845.0,46844.0,0.10735809]
[1641004216539,0.77120368,46845.0,46844.0,0.10735809]
[1641004216740,0.78953745,46845.0,46844.0,0.10735809]
[1641004216940,1.03483641,46845.0,46844.0,0.10735809]
[1641004217741,1.23483641,46845.0,46844.0,0.10735809]
[1641004218344,1.25433087,46845.0,46844.0,0.10735809]
[1641004218542,1.2359971,46845.0,46844.0,0.10735809]
[1641004218941,1.23478042,46845.0,46844.0,0.10735809]
[1641004219779,1.25346502,46845.0,46844.0,0.10735809]
[1641004219980,1.23518724,46845.0,46844.0,0.10735809]
[1641004220782,1.25346275,46845.0,46844.0,0.10735809]
[1641004220985,1.23477815,46845.0,46844.0,0.10735809]
[1641004221185,1.23477815,46845.0,46844.0,0.10773665]
[1641004221786,1.25400289,46845.0,46844.0,0.10773665]
[1641004221986,1.23572738,46845.0,46844.0,0.10773665]
[1641004222886,1.25606258,46845.0,46844.0,0.10773665]
[1641004223143,1.23683784,46845.0,46844.0,0.10773665]
[1641004223938,1.25653797,46845.0,46844.0,0.10773665]
[1641004224136,1.03620277,46845.0,46844.0,0.10773665]
[1641004224337,0.76939426,46845.0,46844.0,0.10773665]
[1641004224535,1.0346457,46845.0,46844.0,0.10773665]
[1641004225535,1.05499706,46845.0,46844.0,0.10773665]
[1641004225736,1.03529693,46845.0,46844.0,0.10773665]
[1641004225935,1.05510283,46845.0,46844.0,0.10773665]
[1641004226135,1.03475147,46845.0,46844.0,0.10773665]
[1641004226335,1.23475147,46845.0,46844.0,0.10773665]
[1641004226743,1.28090173,46845.0,46844.0,0.10773665]
[1641004226985,1.2992941,46845.0,46844.0,0.10773665]
[1641004227184,1.2794882,46845.0,46844.0,0.10773665]
[1641004227985,1.29887614,46845.0,46844.0,0.10773665]
[1641004228986,1.317071,46845.0,46844.0,0.10773665]
[1641004229190,1.27929069,46845.0,46844.0,0.10773665]
[1641004229988,1.29955183,46845.0,46844.0,0.10773665]
[1641004230187,1.23520671,46845.0,46844.0,0.10773665]
[1641004230635,1.23422955,46845.0,46844.0,0.10616163]
[1641004231027,1.23352094,46845.0,46844.0,0.10116163]
[1641004232030,1.25417983,46845.0,46844.0,0.10116163]
[1641004232234,1.2346273,46845.0,46844.0,0.10116163]
[1641004232931,1.25495384,46845.0,46844.0,0.10116163]
[1641004233132,1.23429495,46845.0,46844.0,0.10116163]
[1641004233932,1.25524681,46845.0,46844.0,0.10116163]
[1641004234135,1.23492027,46845.0,46844.0,0.10116163]
[1641004234969,1.25580994,46845.0,46844.0,0.10116163]
[1641004235170,1.23485808,46845.0,46844.0,0.10116163]
[1641004236069,1.25433441,46845.0,46844.0,0.10116163]
[1641004236270,0.9681933,46845.0,46844.0,0.10116163]
[1641004236875,0.7681933,46845.0,46844.0,0.10116163]
[1641004237071,0.78615786,46845.0,46844.0,0.10116163]
[1641004237272,0.76668153,46845.0,46844.0,0.10116163]
[1641004237972,0.78517073,46845.0,46844.0,0.10116163]
[1641004238237,1.23289586,46845.0,46844.0,0.10116163]
[1641004239038,1.25426909,46845.0,46844.0,0.10116163]
[1641004239236,1.23577989,46845.0,46844.0,0.10116163]
[1641004240240,0.98848016,46845.0,46844.0,0.10116163]
[1641004240839,0.94874309,46845.0,46844.0,0.10116163]
[1641004241043,0.96833487,46845.0,46844.0,0.10116163]
[1641004241886,1.23442761,46845.0,46844.0,0.10116163]
[1641004242086,1.25294898,46845.0,46844.0,0.10116163]
[1641004242284,1.2333572,46845.0,46844.0,0.10116163]
[1641004243685,1.25257748,46845.0,46844.0,0.10116163]
[1641004243889,1.23405611,46845.0,46844.0,0.10116163]
[1641004244086,1.2541955,46845.0,46844.0,0.10116163]
[1641004244286,1.23497522,46845.0,46844.0,0.10116163]
[1641004245186,1.25472727,46845.0,46844.0,0.10116163]
[1641004245386,1.23458788,46845.0,46844.0,0.10116163]
[1641004246022,1.255198,46845.0,46844.0,0.10116163]
[1641004246422,1.23544595,46845.0,46844.0,0.10116163]
[1641004247023,1.23544595,46845.0,46844.0,0.10273669]
[1641004247228,1.25704038,46845.0,46844.0,0.10273669]
[1641004248225,1.27759536,46845.0,46844.0,0.10273669]
[1641004248427,1.23539081,46845.0,46844.0,0.10273669]
[1641004248627,0.96803562,46845.0,46844.0,0.10273669]
[1641004249229,0.98616462,46845.0,46844.0,0.10273669]
[1641004249465,0.96560964,46845.0,46844.0,0.10273669]
[1641004250065,0.98550703,46845.0,46844.0,0.10273669]
[1641004250265,0.96737803,46845.0,46844.0,0.10273669]
[1641004251067,0.9874491,46845.0,46844.0,0.10273669]
[1641004251269,0.96755171,46845.0,46844.0,0.10273669]
[1641004251469,0.96787742,46845.0,46844.0,0.10273669]
[1641004251668,0.96852884,46845.0,46844.0,0.10273669]
[1641004252267,0.98997066,46845.0,46844.0,0.10273669]
[1641004252469,0.96989959,46845.0,46844.0,0.10273669]
[1641004253134,0.98872658,46845.0,46844.0,0.10273669]
[1641004253527,0.96728476,46845.0,46844.0,0.10273669]
[1641004254126,0.9890295,46845.0,46844.0,0.10273669]
[1641004254327,0.97020251,46845.0,46844.0,0.10273669]
[1641004255226,0.98852771,46845.0,46844.0,0.10273669]
[1641004255427,0.96678297,46845.0,46844.0,0.10273669]
[1641004255827,1.23403037,46845.0,46844.0,0.10273669]
[1641004256866,1.25433504,46845.0,46844.0,0.10273669]
[1641004257064,1.23600984,46845.0,46844.0,0.10273669]
[1641004257264,1.2579256,46845.0,46844.0,0.10273669]
[1641004257468,1.21570517,46845.0,46844.0,0.10273669]
[1641004258265,1.23562435,46845.0,46844.0,0.10273669]
[1641004259266,1.25409009,46845.0,46844.0,0.10273669]
[1641004260821,1.27453937,46845.0,46844.0,0.10273669]
[1641004261019,1.23615445,46845.0,46844.0,0.10273669]
[1641004261218,1.258113,46845.0,46844.0,0.10273669]
[1641004261419,1.23766372,46845.0,46844.0,0.10273669]
[1641004262220,0.99104432,46845.0,46844.0,0.10273669]
[1641004262425,0.96908577,46845.0,46844.0,0.10273669]
[1641004263221,0.98981911,46845.0,46844.0,0.10273669]
[1641004263422,0.96919111,46845.0,46844.0,0.10273669]
[1641004264376,0.96794669,46845.0,46844.0,0.10273669]
[1641004265380,0.97013327,46845.0,46844.0,0.10273669]
[1641004266381,0.99206193,46845.0,46844.0,0.10273669]
[1641004266581,0.97038643,46845.0,46844.0,0.10273669]
[1641004267282,0.99204722,46845.0,46844.0,0.10273669]
[1641004267581,0.97011856,46845.0,46844.0,0.10273669]
[1641004268522,0.98891483,46845.0,46844.0,0.10273669]
[1641004268722,0.94845777,46845.0,46844.0,0.10273669]
[1641004269324,0.96763581,46845.0,46844.0,0.10273669]
[1641004270219,0.98782441,46845.0,46844.0,0.10273669]
[1641004270623,0.96864637,46845.0,46844.0,0.10273669]
[1641004270820,1.29726331,46844.0,46841.0,0.002]
[1641004271121,1.26404167,46842.0,46841.0,0.002]
[1641004271323,1.36404167,46842.0,46841.0,0.002]
[1641004271522,1.46404167,46842.0,46841.0,0.002]
[1641004272177,0.26404167,46842.0,46841.0,0.002]
[1641004272579,0.16404167,46842.0,46841.0,0.002]
[1641004272778,0.16404167,46842.0,46841.0,0.00338354]
[1641004272978,0.18495809,46842.0,46841.0,0.00338354]
[1641004273978,0.99495809,46842.0,46841.0,0.00338354]
[1641004274181,1.09495809,46842.0,46841.0,0.00338354]
[1641004274379,1.15472,46842.0,46841.0,0.00338354]
[1641004274580,1.13380358,46842.0,46841.0,0.00338354]
[1641004275382,1.15515329,46842.0,46841.0,0.00338354]
[1641004276431,1.15216152,46842.0,46841.0,0.00338354]
[1641004276832,0.34216152,46842.0,46841.0,0.00338354]
[1641004277031,0.78216152,46842.0,46841.0,0.00338354]
[1641004277235,0.36212484,46842.0,46841.0,0.00338354]
[1641004277432,0.3437669,46842.0,46841.0,0.00338354]
[1641004278235,0.2437669,46842.0,46841.0,0.00338354]
[1641004278535,0.34578192,46842.0,46841.0,0.00338354]
[1641004278933,0.76578192,46842.0,46841.0,0.00338354]
[1641004279387,0.78457759,46842.0,46841.0,0.00338354]
[1641004279586,0.76259925,46842.0,46841.0,0.00338354]
[1641004280385,0.78066101,46842.0,46841.0,0.00338354]
[1641004281089,0.36066101,46842.0,46841.0,0.00338354]
[1641004281285,0.34402553,46842.0,46841.0,0.00338354]
[1641004281489,0.29311309,46842.0,46841.0,0.00338354]
[1641004281688,0.8134576,46842.0,46841.0,0.00338354]
[1641004282491,0.6134576,46842.0,46841.0,0.00338354]
[1641004282692,0.32380358,46842.0,46841.0,0.00338354]
[1641004283126,0.52380358,46842.0,46841.0,0.00338354]
[1641004283419,0.80657239,46842.0,46841.0,0.00338354]
[1641004284520,0.82630871,46842.0,46841.0,0.00338354]
[1641004284720,0.80563603,46842.0,46841.0,0.00338354]
[1641004285321,0.82672348,46842.0,46841.0,0.00338354]
[1641004285525,0.80698716,46842.0,46841.0,0.00338354]
[1641004286521,0.80452122,46842.0,46841.0,0.00338354]
[1641004287372,0.82533351,46842.0,46841.0,0.00338354]
[1641004287578,1.2,46841.0,46839.0,0.00011]
[1641004287875,0.00129889,46836.0,46835.0,0.00958827]
[1641004288075,1.46534056,46836.0,46835.0,0.00958827]
[1641004288374,1.46534056,46836.0,46833.0,0.00011]
[1641004288375,0.360222,46835.0,46833.0,0.00011]
[1641004288572,0.06404167,46834.0,46833.0,0.00011]
[1641004288774,0.26404167,46834.0,46833.0,0.00011]
[1641004289173,0.32380358,46834.0,46833.0,0.00011]
[1641004289572,0.3,46834.0,46833.0,0.00011]
[1641004289970,0.59380667,46834.0,46833.0,0.00011]
[1641004290472,0.6152898,46834.0,46833.0,0.00011]
[1641004290734,0.67933147,46834.0,46833.0,0.00011]
[1641004291342,0.69950547,46834.0,46833.0,0.00011]
[1641004291534,0.67802234,46834.0,46833.0,0.00011]
[1641004292133,0.67729407,46834.0,46833.0,0.00011]
[1641004292532,0.67869459,46834.0,46833.0,0.00011]
[1641004292734,0.67901102,46834.0,46833.0,0.00011]
[1641004293535,0.70040557,46834.0,46833.0,0.00011]
[1641004293735,0.67883105,46834.0,46833.0,0.00011]
[1641004293939,0.67883105,46834.0,46830.0,0.09263142]
[1641004294236,0.06404167,46831.0,46830.0,0.08996142]
[1641004294483,0.26404167,46831.0,46830.0,0.08996142]
[1641004294683,1.26404167,46831.0,46830.0,0.08496142]
[1641004294885,0.31404167,46831.0,46830.0,0.08496142]
[1641004295183,0.41404167,46831.0,46830.0,0.08496142]
[1641004295383,0.43375405,46831.0,46830.0,0.08496142]
[1641004296384,0.71874601,46831.0,46830.0,0.08496142]
[1641004296588,0.69903363,46831.0,46830.0,0.08496142]
[1641004296785,0.43324742,46831.0,46830.0,0.08496142]
[1641004297785,0.69562831,46831.0,46830.0,0.08496142]
[1641004298243,0.43349651,46831.0,46830.0,0.08496142]
[1641004298443,0.45251134,46831.0,46830.0,0.08615823]
[1641004298644,0.4330565,46831.0,46830.0,0.08615823]
[1641004299443,0.45270069,46831.0,46830.0,0.08615823]
[1641004299643,0.43368586,46831.0,46830.0,0.08615823]
[1641004300447,0.45344353,46831.0,46830.0,0.08615823]
[1641004300646,0.43379934,46831.0,46830.0,0.08615823]
[1641004300945,0.71000888,46831.0,46830.0,0.08615823]
[1641004301548,0.72961473,46831.0,46830.0,0.08615823]
[1641004301750,0.50985706,46831.0,46830.0,0.08615823]
[1641004301988,0.44581539,46831.0,46830.0,0.08615823]
[1641004302589,0.44671349,46831.0,46830.0,0.08615823]
[1641004302989,0.23454562,46831.0,46830.0,0.08615823]
[1641004303189,0.96906482,46831.0,46830.0,0.08615823]
[1641004303590,1.0891628,46831.0,46830.0,0.08615823]
[1641004303790,0.5306567,46831.0,46830.0,0.08615823]
[1641004304590,1.10832715,46831.0,46830.0,0.08615823]
[1641004304794,1.06803917,46831.0,46830.0,0.08615823]
[1641004305636,1.06950071,46831.0,46830.0,0.08615823]
[1641004306636,1.06837064,46831.0,46830.0,0.08615823]
[1641004307437,1.06837064,46831.0,46830.0,0.08115823]
[1641004307638,1.06775209,46831.0,46830.0,0.08115823]
[1641004308537,1.08896293,46831.0,46830.0,0.08115823]
[1641004308737,1.27023269,46831.0,46830.0,0.08115823]
[1641004308938,1.53149812,46831.0,46830.0,0.08115823]
[1641004309139,0.69714584,46831.0,46830.0,0.08115823]
[1641004309368,0.64431513,46831.0,46830.0,0.08115823]
[1641004309570,0.66503156,46831.0,46830.0,0.08115823]
[1641004310471,0.9466683,46831.0,46830.0,0.08115823]
[1641004310671,0.6418353,46831.0,46830.0,0.08115823]
[1641004311069,0.90454821,46831.0,46830.0,0.08115823]
[1641004311472,0.6613768,46831.0,46830.0,0.08115823]
[1641004311668,0.64264579,46831.0,46830.0,0.08115823]
[1641004311868,0.90640575,46831.0,46830.0,0.08115823]
[1641004312070,0.64264579,46831.0,46830.0,0.08115823]
[1641004312670,0.66109795,46831.0,46830.0,0.08115823]
[1641004312870,0.64155645,46831.0,46830.0,0.08115823]
[1641004313532,0.66132378,46831.0,46830.0,0.08115823]
[1641004313831,1.28794572,46831.0,46830.0,0.08115823]
[1641004314232,0.45288906,46831.0,46830.0,0.08115823]
[1641004314834,0.6618336,46831.0,46830.0,0.08115823]
[1641004315034,0.92449553,46831.0,46830.0,0.08115823]
[1641004315232,0.94511223,46831.0,46830.0,0.08115823]
[1641004315432,0.64423081,46831.0,46830.0,0.08115823]
[1641004315634,0.66466844,46831.0,46830.0,0.08115823]
[1641004315833,0.64405174,46831.0,46830.0,0.08115823]
[1641004316436,0.90609043,46831.0,46830.0,0.08115823]
[1641004316638,0.92785742,46831.0,46830.0,0.08115823]
[1641004317479,0.62361411,46831.0,46830.0,0.08115823]
[1641004317680,0.64310215,46831.0,46830.0,0.08115823]
[1641004318681,0.6612601,46831.0,46830.0,0.08115823]
[1641004318883,0.64177206,46831.0,46830.0,0.08115823]
[1641004319281,0.90272311,46831.0,46830.0,0.08115823]
[1641004319681,0.92106697,46831.0,46830.0,0.08115823]
[1641004319882,0.90290902,46831.0,46830.0,0.08115823]
[1641004320734,0.92363268,46831.0,46830.0,0.08115823]
[1641004320934,0.90528882,46831.0,46830.0,0.08115823]
[1641004321734,0.92393704,46831.0,46830.0,0.08115823]
[1641004321934,0.90321338,46831.0,46830.0,0.08115823]
[1641004322737,0.92328595,46831.0,46830.0,0.08115823]
[1641004322938,0.64368668,46831.0,46830.0,0.08115823]
[1641004323734,0.66565361,46831.0,46830.0,0.08115823]
[1641004323936,0.64558104,46831.0,46830.0,0.08115823]
[1641004324792,0.45824317,46831.0,46830.0,0.08115823]
[1641004324989,0.43627624,46831.0,46830.0,0.08115823]
[1641004325190,1.27100499,46831.0,46830.0,0.08115823]
[1641004325790,1.2708233,46831.0,46830.0,0.08115823]
[1641004325991,1.0708233,46831.0,46830.0,0.08115823]
[1641004326393,0.43909746,46831.0,46830.0,0.08115823]
[1641004326795,0.08609455,46831.0,46830.0,0.08115823]
[1641004327092,0.02205288,46831.0,46830.0,0.08115823]
[1641004327291,0.04066043,46831.0,46830.0,0.08115823]
[1641004327491,0.08327712,46831.0,46830.0,0.08115823]
[1641004327894,0.06466957,46831.0,46830.0,0.08115823]
[1641004328164,0.11466957,46831.0,46830.0,0.08115823]
[1641004328357,0.06466957,46831.0,46830.0,0.08115823]
[1641004329359,0.78055311,46831.0,46830.0,0.08115823]
[1641004329558,0.71651144,46831.0,46830.0,0.08115823]
[1641004329760,0.0006279,46831.0,46830.0,0.08115823]
[1641004330763,0.06466957,46831.0,46830.0,0.08115823]
[1641004331168,0.11466957,46831.0,46830.0,0.08115823]
[1641004334479,0.31592303,46831.0,46830.0,0.08115823]
[1641004334678,0.41592303,46831.0,46830.0,0.08115823]
[1641004335280,0.77615203,46831.0,46830.0,0.08115823]
[1641004335727,0.79428597,46831.0,46830.0,0.08115823]
[1641004336226,1.05584066,46831.0,46830.0,0.08115823]
[1641004336425,0.79428597,46831.0,46830.0,0.08115823]
[1641004336724,0.59428597,46831.0,46830.0,0.08115823]
[1641004336923,0.61373479,46831.0,46830.0,0.08115823]
[1641004337125,0.59560085,46831.0,46830.0,0.08115823]
[1641004337723,0.61648861,46831.0,46830.0,0.08115823]
[1641004337928,0.59703979,46831.0,46830.0,0.08115823]
[1641004338724,0.61716049,46831.0,46830.0,0.08115823]
[1641004339124,0.59627273,46831.0,46830.0,0.08115823]
[1641004339793,0.61616256,46831.0,46830.0,0.08115823]
[1641004339993,0.3947884,46831.0,46830.0,0.08115823]
[1641004340393,0.2947884,46831.0,46830.0,0.08115823]
[1641004340593,0.3947884,46831.0,46830.0,0.08115823]
[1641004340796,0.41621452,46831.0,46830.0,0.08115823]
[1641004341000,0.39632469,46831.0,46830.0,0.08115823]
[1641004341597,0.29632469,46831.0,46830.0,0.08115823]
[1641004341796,0.41709297,46831.0,46830.0,0.08115823]
[1641004341998,0.39566685,46831.0,46830.0,0.08115823]
[1641004342797,0.41547686,46831.0,46830.0,0.08115823]
[1641004342998,0.29470858,46831.0,46830.0,0.08115823]
[1641004343240,0.65725315,46831.0,46830.0,0.08115823]
[1641004343440,1.69062477,46831.0,46830.0,0.08115823]
[1641004343839,1.06574635,46831.0,46830.0,0.08115823]
[1641004344742,1.04593634,46831.0,46830.0,0.08115823]
[1641004344938,1.0651117,46831.0,46830.0,0.08115823]
[1641004345939,1.08581519,46831.0,46830.0,0.08115823]
[1641004346242,1.06663983,46831.0,46830.0,0.08115823]
[1641004346879,1.08712077,46831.0,46830.0,0.08115823]
[1641004347079,1.06641728,46831.0,46830.0,0.08115823]
[1641004348081,1.53641728,46831.0,46830.0,0.08115823]
[1641004348282,1.06641728,46831.0,46830.0,0.08115823]
[1641004348483,1.08634794,46831.0,46830.0,0.08115823]
[1641004348681,1.065867,46831.0,46830.0,0.08115823]
[1641004348884,1.08753352,46831.0,46830.0,0.08115823]
[1641004349082,2.02293523,46831.0,46830.0,0.08115823]
[1641004349681,1.06760286,46831.0,46830.0,0.08115823]
[1641004349884,1.08815647,46831.0,46830.0,0.08115823]
[1641004350084,1.06648995,46831.0,46830.0,0.08115823]
[1641004350835,1.08753405,46831.0,46830.0,0.08115823]
[1641004351134,1.06698044,46831.0,46830.0,0.08115823]
[1641004352035,1.06400269,46831.0,46830.0,0.08115823]
[1641004353134,1.06658779,46831.0,46830.0,0.08115823]
[1641004353335,1.4,46830.0,46829.0,0.00033]
[1641004353536,1.56404167,46830.0,46829.0,0.00033]
[1641004354239,1.77253487,46830.0,46829.0,0.00033]
[1641004355079,1.79127572,46830.0,46829.0,0.00033]
[1641004356080,1.81316043,46830.0,46829.0,0.00033]
[1641004356280,1.79441958,46830.0,46829.0,0.00033]
[1641004356979,1.81523947,46830.0,46829.0,0.00033]
[1641004357183,1.79335476,46830.0,46829.0,0.00033]
[1641004358127,1.79350489,46830.0,46829.0,0.00033]
[1641004359128,1.81508287,46830.0,46829.0,0.00033]
[1641004359330,1.79411285,46830.0,46829.0,0.00033]
[1641004360128,1.79265316,46830.0,46829.0,0.00033]
[1641004361029,1.81098656,46830.0,46829.0,0.00033]
[1641004361328,1.79086827,46830.0,46829.0,0.00033]
[1641004362779,1.81134488,46830.0,46829.0,0.00033]
[1641004362978,1.79301148,46830.0,46829.0,0.00033]
[1641004363179,1.81359138,46830.0,46829.0,0.00033]
[1641004363480,1.79311477,46830.0,46829.0,0.00033]
[1641004364782,1.81493183,46830.0,46829.0,0.00033]
[1641004364982,1.79435193,46830.0,46829.0,0.00152684]
[1641004365182,0.00129385,46827.0,46822.0,0.00011]
[1641004365387,1.50443075,46818.0,46815.0,0.00022]
[1641004365635,0.5727385,46817.0,46815.0,0.00022]
[1641004365827,0.63678017,46817.0,46815.0,0.00022]
[1641004366028,0.73678017,46817.0,46815.0,0.00022]
[1641004367132,1.35034237,46817.0,46815.0,0.00022]
[1641004367729,0.75770295,46817.0,46815.0,0.00022]
[1641004367928,1.05151396,46817.0,46815.0,0.00022]
[1641004368129,1.07204604,46817.0,46815.0,0.00022]
[1641004368330,1.76258172,46817.0,46815.0,0.00022]
[1641004368529,1.46877071,46817.0,46815.0,0.00022]
[1641004368930,0.75731225,46817.0,46815.0,0.00022]
[1641004369999,0.77877553,46817.0,46815.0,0.00022]
[1641004370198,1.35118631,46817.0,46815.0,0.00022]
[1641004370999,1.36974035,46817.0,46815.0,0.00022]
[1641004371600,1.35118631,46817.0,46815.0,0.00022]
[1641004371800,1.35007882,46817.0,46815.0,0.00022]
[1641004371999,0.75713596,46817.0,46815.0,0.00022]
[1641004372200,1.05009417,46817.0,46815.0,0.00022]
[1641004372403,1.02973838,46817.0,46815.0,0.00022]
[1641004373255,1.64070902,46817.0,46815.0,0.00022]
[1641004373953,1.60400415,46817.0,46815.0,0.00022]
[1641004374255,1.62475946,46817.0,46815.0,0.00022]
[1641004374655,1.35025388,46817.0,46815.0,0.00022]
[1641004375353,1.35011596,46817.0,46815.0,0.00022]
[1641004376154,0.77915611,46817.0,46815.0,0.00022]
[1641004376356,1.05662859,46817.0,46815.0,0.00022]
[1641004376557,1.05693093,46817.0,46815.0,0.00022]
[1641004376977,1.01455499,46817.0,46815.0,0.00022]
[1641004377179,1.03458708,46817.0,46815.0,0.00022]
[1641004377378,1.01836259,46817.0,46815.0,0.00022]
[1641004378181,1.03697956,46817.0,46815.0,0.00022]
[1641004378380,1.01694747,46817.0,46815.0,0.00022]
[1641004379180,1.03660095,46817.0,46815.0,0.00022]
[1641004379381,1.01798398,46817.0,46815.0,0.00022]
[1641004380187,1.03693646,46817.0,46815.0,0.00022]
[1641004380382,1.01728298,46817.0,46815.0,0.00022]
[1641004381235,1.03564095,46817.0,46815.0,0.00022]
[1641004381436,1.01668847,46817.0,46815.0,0.00022]
[1641004382335,1.03679081,46817.0,46815.0,0.00022]
[1641004382537,1.01843284,46817.0,46815.0,0.00022]
[1641004383338,1.03892926,46817.0,46815.0,0.00022]
[1641004383538,1.01882692,46817.0,46815.0,0.00022]
[1641004384388,1.01802997,46817.0,46815.0,0.00022]
[1641004384588,1.61051416,46817.0,46815.0,0.00022]
[1641004385293,1.03612699,46817.0,46815.0,0.00022]
[1641004385692,1.39204615,46817.0,46815.0,0.00022]
[1641004386391,1.05591776,46817.0,46815.0,0.00022]
[1641004386990,0.73708251,46817.0,46815.0,0.00022]
[1641004387392,0.75831666,46817.0,46815.0,0.00022]
[1641004387693,1.46965232,46817.0,46815.0,0.00022]
[1641004388364,1.48850117,46817.0,46815.0,0.00022]
[1641004388561,1.46726702,46817.0,46815.0,0.00022]
[1641004389161,1.36726702,46817.0,46815.0,0.00022]
[1641004389360,1.38735475,46817.0,46815.0,0.00022]
[1641004389561,1.3685059,46817.0,46815.0,0.00022]
[1641004390262,1.38868101,46817.0,46815.0,0.00022]
[1641004390566,1.36859328,46817.0,46815.0,0.00022]
[1641004390963,1.46859328,46817.0,46815.0,0.00022]
[1641004391563,0.75725762,46817.0,46815.0,0.00022]
[1641004391881,0.77529084,46817.0,46815.0,0.00022]
[1641004392083,0.75511573,46817.0,46815.0,0.00022]
[1641004392382,0.77414838,46817.0,46815.0,0.00022]
[1641004392584,0.75611516,46817.0,46815.0,0.00022]
[1641004393187,0.55611516,46817.0,46815.0,0.00022]
[1641004393884,0.47791706,46817.0,46815.0,0.00022]
[1641004394084,0.45888441,46817.0,46815.0,0.00022]
[1641004394284,0.47903429,46817.0,46815.0,0.00022]
[1641004394484,0.45723239,46817.0,46815.0,0.00022]
[1641004395187,0.55723239,46817.0,46815.0,0.00022]
[1641004395385,0.5782071,46817.0,46815.0,0.00022]
[1641004395650,1.15109804,46817.0,46815.0,0.00022]
[1641004396261,1.17073752,46817.0,46815.0,0.00022]
[1641004396652,0.53708251,46817.0,46815.0,0.00022]
[1641004397053,0.82819517,46817.0,46815.0,0.00022]
[1641004397253,0.68492202,46817.0,46815.0,0.00022]
[1641004397452,1.22564829,46817.0,46815.0,0.00022]
[1641004397652,1.22564829,46817.0,46815.0,2.72649836]
[1641004397853,1.22564829,46817.0,46816.0,0.27923176]
[1641004398051,1.22564829,46817.0,46816.0,0.01033]
[1641004398253,0.47863131,46817.0,46816.0,0.01033]
[1641004398454,0.57863131,46817.0,46816.0,0.01033]